Workbook

Sheet v1
A1: ID | B1: Name | C1: Designator | D1: Footprint | E1: Quantity | F1: Manufacturer Part | G1: Manufacturer | H1: Supplier | I1: Supplier Part | J1: moq | K1: 1 | L1: 10 | M1: 25 | N1: 100 | P1: 5 | R1: 10 | T1: 50 | V1: 100
A2: 1 | B2: USB_B_Micro | C2: J2 | D2: USB_Micro_B_Female_10118193-0001LF | E2: 1 | F2: micro usb ali | H2: ali | J2: 100 | N2: =(1.93+0.9)/J2 -> € 0.028 | P2: =IF(P$1*$E2<$J2,$J2,P$1*$E2) -> 100 | Q2: =IF(P2>=100,P2*$N2,IF(P2>=10,$L2*P2,P2*$K2)) -> € 2.83 | R2: =IF(R$1*$E2<$J2,$J2,R$1*$E2) -> 100 | S2: =IF(R2>=100,R2*$N2,IF(R2>=10,$L2*R2,R2*$K2)) -> € 2.83 | T2: =IF(T$1*$E2<$J2,$J2,T$1*$E2) -> 100 | U2: =IF(T2>=100,T2*$N2,IF(T2>=10,$L2*T2,T2*$K2)) -> € 2.83 | V2: =IF(V$1*$E2<$J2,$J2,V$1*$E2) -> 100 | W2: =IF(V2>=100,V2*$N2,IF(V2>=10,$L2*V2,V2*$K2)) -> € 2.83
A3: 2 | B3: 32Khz | C3: Y1 | D3: Oscillator_XLH536025.000000I | E3: 1 | F3: CM7V-T1A-32.768k-6pF-20PPM-TB-QA | G3: MC | H3: mouser | I3: 428-202569-MG01 | J3: 1 | K3: € 0.518 | L3: € 0.384 | M3: =L3 -> € 0.384 | N3: € 0.342 | P3: =IF(P$1*$E3<$J3,$J3,P$1*$E3) -> 5 | Q3: =IF(P3>=100,P3*$N3,IF(P3>=10,$L3*P3,P3*$K3)) -> € 2.59 | R3: =IF(R$1*$E3<$J3,$J3,R$1*$E3) -> 10 | S3: =IF(R3>=100,R3*$N3,IF(R3>=10,$L3*R3,R3*$K3)) -> € 3.84 | T3: =IF(T$1*$E3<$J3,$J3,T$1*$E3) -> 50 | U3: =IF(T3>=100,T3*$N3,IF(T3>=10,$L3*T3,T3*$K3)) -> € 19.20 | V3: =IF(V$1*$E3<$J3,$J3,V$1*$E3) -> 100 | W3: =IF(V3>=100,V3*$N3,IF(V3>=10,$L3*V3,V3*$K3)) -> € 34.20
A4: 3 | B4: MCP73832T-2ACI_OT | C4: U2 | D4: SOT-753 | E4: 1 | F4: MCP73832T-2ACI/OT | H4: mouser | I4: 579-MCP73832T-2ACIOT | J4: 1 | K4: € 0.500 | L4: € 0.500 | M4: € 0.415 | N4: € 0.373 | P4: 5 | Q4: € 2.50 | R4: 10 | S4: € 5.00 | T4: 50 | U4: € 25.00 | V4: 100 | W4: € 37.30
A5: 4 | B5: TestPoint | C5: TP1 | D5: PC_TEST_POINT_SMD | E5: 0 | P5: 0 | Q5: 0 | R5: 0 | S5: 0 | T5: 0 | U5: 0 | V5: 0 | W5: 0
A6: 5 | B6: SW_SPDT_MSM | C6: SW3,SW2,SW1 | D6: Toggle_Switch_100SP1T1B4M2QE | E6: 3 | F6: ali | H6: ali | J6: 5 | K6: =2.5/J6 -> € 0.500 | L6: € 0.500 | M6: € 0.500 | N6: € 0.500 | P6: 15 | Q6: € 7.50 | R6: 30 | S6: € 15.00 | T6: 150 | U6: € 75.00 | V6: 300 | W6: € 150.00
A7: 6 | B7: 100K | C7: R13 | D7: 0603 | E7: 1 | F7: AC0603FR-10100KL | G7: yageo | H7: mouser | I7: 603-AC0603FR-10100KL | J7: 1 | K7: € 0.085 | L7: € 0.019 | M7: =L7 -> € 0.019 | N7: € 0.007 | P7: 5 | Q7: € 0.43 | R7: 10 | S7: € 0.19 | T7: 50 | U7: € 0.95 | V7: 100 | W7: € 0.70
A8: 7 | B8: 200K | C8: R12 | D8: 0603 | E8: 1 | F8: AC0603FR-07200KL | G8: yageo | H8: mouser | I8: 603-AC0603FR-07200KL | J8: 1 | K8: € 0.085 | L8: € 0.019 | M8: € 0.019 | N8: € 0.007 | P8: 5 | Q8: € 0.43 | R8: 10 | S8: € 0.19 | T8: 50 | U8: € 0.95 | V8: 100 | W8: € 0.70
A9: 8 | B9: 0E | C9: R14 | D9: 0603 | E9: 1 | F9: AC0603FR-070RL | G9: yageo | H9: mouser | I9: 603-AC0603FR-070RL | J9: 1 | K9: € 0.085 | L9: € 0.015 | M9: € 0.015 | N9: € 0.005 | P9: 5 | Q9: € 0.43 | R9: 10 | S9: € 0.15 | T9: 50 | U9: € 0.75 | V9: 100 | W9: € 0.50
A10: 9 | B10: 470E | C10: R10 | D10: 0603 | E10: 1 | F10: AC0603FR-10470RL | G10: yageo | H10: mouser | I10: 603-AC0603FR-10470RL | J10: 1 | K10: € 0.085 | L10: € 0.028 | M10: € 0.028 | N10: € 0.011 | P10: 5 | Q10: € 0.43 | R10: 10 | S10: € 0.28 | T10: 50 | U10: € 1.40 | V10: 100 | W10: € 1.10
A11: 10 | B11: 1K | C11: R9,R11 | D11: 0603 | E11: 2 | F11: AC0603FR-101KL | G11: yageo | H11: mouser | I11: 603-AC0603FR-101KL | J11: 1 | K11: € 0.085 | L11: € 0.019 | M11: € 0.019 | N11: € 0.007 | P11: 10 | Q11: € 0.19 | R11: 20 | S11: € 0.38 | T11: 100 | U11: € 0.70 | V11: 200 | W11: € 1.40
A12: 11 | B12: 1M | C12: R8 | D12: 0603 | E12: 1 | F12: AC0603FR-131ML | G12: yageo | H12: mouser | I12: 603-AC0603FR-131ML | J12: 1 | K12: € 0.085 | L12: € 0.019 | M12: € 0.019 | N12: € 0.007 | P12: 5 | Q12: € 0.43 | R12: 10 | S12: € 0.19 | T12: 50 | U12: € 0.95 | V12: 100 | W12: € 0.70
A13: 12 | B13: 10K | C13: R7,R6,R5,R4 | D13: 0603 | E13: 4 | F13: AC0603FR-1010KL | G13: yageo | H13: mouser | I13: 603-AC0603FR-1010KL | J13: 1 | K13: € 0.085 | L13: € 0.019 | M13: € 0.019 | N13: € 0.007 | P13: 20 | Q13: € 0.38 | R13: 40 | S13: € 0.76 | T13: 200 | U13: € 1.40 | V13: 400 | W13: € 2.80
A14: 13 | B14: 105E | C14: R3,R2,R1 | D14: 0603 | E14: 3 | F14: AC0603FR-07105RL | G14: yageo | H14: mouser | I14: 603-AC0603FR-07105RL | J14: 1 | K14: € 0.085 | L14: € 0.019 | M14: € 0.019 | N14: € 0.007 | P14: 15 | Q14: € 0.29 | R14: 30 | S14: € 0.57 | T14: 150 | U14: € 1.05 | V14: 300 | W14: € 2.10
A15: 14 | B15: 2,2uH | C15: L1 | D15: 0805 | E15: 1 | F15: LQM21PN2R2NGCDCD | G15: murata | H15: mouser | I15: 81-LQM21PN2R2NGCDCD | J15: 1 | K15: € 0.263 | L15: € 0.183 | M15: € 0.183 | N15: € 0.149 | P15: 5 | Q15: € 1.32 | R15: 10 | S15: € 1.83 | T15: 50 | U15: € 9.15 | V15: 100 | W15: € 14.90
A16: 15 | B16: Conn_01x04 | C16: J3 | D16: PinHeader_1x4_P2.54mm_Drill1.02mm | E16: 0 | P16: 0 | Q16: 0 | R16: 0 | S16: 0 | T16: 0 | U16: 0 | V16: 0 | W16: 0
A17: 16 | B17: Conn_01x02_Male | C17: J1 | D17: JST_XH_S2B-XH-A_1x02_P2.50mm_Horizontal | E17: 1 | F17: S2B-XH-A (LF)(SN) | G17: JST | H17: Farnell | I17: 1516289 | J17: 100 | K17: 0 | L17: 0 | M17: 0 | N17: € 0.098 | P17: 100 | Q17: € 9.80 | R17: 100 | S17: € 9.80 | T17: 100 | U17: € 9.80 | V17: 100 | W17: € 9.80
A18: 17 | B18: LED (RED) | C18: D2 | D18: 0805 | E18: 1 | F18: APT2012EC | G18: Kingbright | H18: mouser | I18: 604-APT2012EC | J18: 1 | K18: € 0.161 | L18: € 0.112 | M18: =L18 -> € 0.112 | N18: € 0.055 | P18: 5 | Q18: € 0.81 | R18: 10 | S18: € 1.12 | T18: 50 | U18: € 5.60 | V18: 100 | W18: € 5.50
A19: 17a | B19: LED (GREEN) | C19: D1 | D19: 0805 | E19: 1 | F19: APT2012SGC | G19: kingbright | H19: mouser | I19: 604-APT2012SGC | J19: 1 | K19: € 0.152 | L19: € 0.112 | M19: =L19 -> € 0.112 | N19: € 0.055 | P19: 5 | Q19: € 0.76 | R19: 10 | S19: € 1.12 | T19: 50 | U19: € 5.60 | V19: 100 | W19: € 5.50
A20: 18 | B20: 4,7uF | C20: C9,C7,C1 | D20: 0805 | E20: 3 | F20: CL21A475KPFNNNG | G20: samsung | H20: mouser | I20: 187-CL21A475KPFNNNG | J20: 1 | K20: € 0.085 | L20: € 0.036 | M20: € 0.036 | N20: € 0.030 | P20: 15 | Q20: € 0.54 | R20: 30 | S20: € 1.08 | T20: 150 | U20: € 4.50 | V20: 300 | W20: € 9.00
A21: 19 | B21: 100nF | C21: C8,C6,C5 | D21: 0603 | E21: 3 | F21: CL10A104KA8NNNC | G21: samsung | H21: mouser | I21: 187-CL10A104KA8NNNC | J21: 1 | K21: € 0.085 | L21: € 0.019 | M21: € 0.019 | N21: € 0.015 | P21: 15 | Q21: € 0.29 | R21: 30 | S21: € 0.57 | T21: 150 | U21: € 2.25 | V21: 300 | W21: € 4.50
A22: 20 | B22: 1uF | C22: C4 | D22: 0805 | E22: 1 | F22: CL10A105KA8NNNC | G22: samsung | H22: mouser | I22: 187-CL10A105KA8NNNC | J22: 1 | K22: € 0.850 | L22: € 0.016 | M22: =L22 -> € 0.016 | N22: € 0.014 | P22: 5 | Q22: € 4.25 | R22: 10 | S22: € 0.16 | T22: 50 | U22: € 0.80 | V22: 100 | W22: € 1.40
A23: 21 | B23: 4,3pF | C23: C3,C2 | D23: 0603 | E23: 2 | F23: CC0603CRNPO9BN4R3 | H23: mouser | I23: 603-CC0603CR9BN4R3 | J23: 1 | K23: € 0.090 | L23: € 0.040 | M23: € 0.040 | N23: € 0.020 | P23: 10 | Q23: € 0.40 | R23: 20 | S23: € 0.80 | T23: 100 | U23: € 2.00 | V23: 200 | W23: € 4.00
A24: 22 | B24: SJ1-3523N | C24: CON1,CON2,CON3 | D24: 3,5mm_straight_circular | E24: 3 | F24: ali metal | H24: ali | J24: 10 | K24: =(0.91+1.79)/J24 -> € 0.270 | L24: =K24 -> € 0.270 | M24: =L24 -> € 0.270 | N24: =L24 -> € 0.270 | P24: 20 | Q24: € 5.40 | R24: 30 | S24: € 8.10 | T24: 150 | U24: € 40.50 | V24: 300 | W24: € 81.00
A25: 23 | B25: STM32L031K6Tx | C25: U1 | D25: QFN-32-1EP_5x5mm | E25: 1 | F25: STM32L031K6U6TR | G25: stm | H25: mouser | I25: 511-STM32L031K6U6TR | J25: 1 | K25: € 2.290 | L25: € 1.940 | M25: € 1.940 | N25: € 1.650 | P25: 5 | Q25: € 11.45 | R25: 10 | S25: € 19.40 | T25: 50 | U25: € 97.00 | V25: 100 | W25: € 165.00
A26: 24 | B26: EG1218 | C26: S1 | D26: slids_switch_spdt | E26: 1 | F26: ali slide switch | H26: ali | J26: 20 | K26: =(1.52+0.85)/J26 -> € 0.119 | L26: =K26 -> € 0.119 | M26: =L26 -> € 0.119 | N26: =L26 -> € 0.119 | P26: 20 | Q26: € 2.37 | R26: 20 | S26: € 2.37 | T26: 50 | U26: € 5.93 | V26: 100 | W26: € 11.85
A27: 25 | B27: LM3671MF-3.3 | C27: U3 | D27: SOT-753 | E27: 1 | F27: LM3671MF-3.3NOPB | G27: tI | H27: mouser | I27: 926-LM3671MF-3.3NOPB | J27: 1 | K27: € 1.190 | L27: € 1.010 | M27: € 1.010 | N27: € 0.770 | P27: 5 | Q27: € 5.95 | R27: 10 | S27: € 10.10 | T27: 50 | U27: € 50.50 | V27: 100 | W27: € 77.00
A28: 26 | B28: jackplug | C28: P1 | D28: 3,5mm 3pos metal | E28: 3 | F28: ali metal | H28: ali | J28: 2 | K28: =(0.66+0.51)/2 -> € 0.585 | L28: =K28 -> € 0.585 | M28: =L28 -> € 0.585 | N28: =L28 -> € 0.585 | P28: 16 | Q28: € 9.36 | R28: 30 | S28: € 17.55 | T28: 150 | U28: € 87.75 | V28: 300 | W28: € 175.50
A29: 27 | B29: 5mm led green | C29: D3 | D29: LED green 5mm 10mA 4,7mcd 60degr Fv2,1v | E29: 1 | F29: HLMP-3507 | G29: broadcom | H29: farnell | I29: 1003214 | J29: 5 | K29: € 0.384 | L29: € 0.217 | M29: =L29 -> € 0.217 | N29: € 0.132 | P29: 5 | Q29: € 1.92 | R29: 10 | S29: € 2.17 | T29: 50 | U29: € 10.85 | V29: 100 | W29: € 13.20
A30: 28 | B30: 5mm led red | C30: D4 | D30: LED red 5mm 10mA 6,1mcd 60degr Fv1,9v | E30: 1 | F30: HLMP-3301 | G30: broadcom | H30: farnell | I30: 1003211 | J30: 5 | K30: € 0.384 | L30: € 0.217 | M30: =L30 -> € 0.217 | N30: € 0.132 | P30: 5 | Q30: € 1.92 | R30: 10 | S30: € 2.17 | T30: 50 | U30: € 10.85 | V30: 100 | W30: € 13.20
A31: 29 | B31: 5mm led yellow | C31: D5 | D31: LED yellow 5mm 10mA 5,7mcd 60degr Fv2,0 | E31: 1 | F31: HLMP-3401 | G31: broadcom | H31: farnell | I31: 1003213 | J31: 5 | K31: € 0.384 | L31: € 0.217 | M31: =L31 -> € 0.217 | N31: € 0.132 | P31: 5 | Q31: € 1.92 | R31: 10 | S31: € 2.17 | T31: 50 | U31: € 10.85 | V31: 100 | W31: € 13.20
A32: 30 | B32: PCB | C32: x1 | D32: 76x44, 1,6mm fr4 panel | E32: 0 | H32: pcbway | J32: 5 | K32: =43*0.84/J32 -> € 7.224 | L32: =44*0.84/10 -> € 3.696 | M32: =67*0.84/50 -> € 1.126 | N32: =103*0.84/100 -> € 0.865 | P32: 5 | Q32: € 36.12 | R32: 5 | S32: € 36.12 | T32: 5 | U32: € 36.12 | V32: 5 | W32: € 36.12
A33: 31 | B33: PCB | C33: x1 | D33: 76x44, 1,6mm fr4 panel | E33: 1 | J33: 5 | K33: =(1.65+7.31)/5 -> € 1.792 | L33: =(4.12+7.44)/10 -> € 1.156 | M33: =(8.81+8.2)/25 -> € 0.680 | N33: =(24.53+20)/100 -> € 0.445 | P33: 5 | Q33: € 8.96 | R33: 10 | S33: € 11.56 | T33: 50 | U33: € 57.80 | V33: 100 | W33: € 44.53
A34: 32 | B34: case | C34: x2 | D34: alu box 80x50x20 black anodized | E34: 1 | F34: ali alu | J34: 1 | K34: =2.94+0.25 -> € 3.190 | L34: =2.94+0.25 -> € 3.190 | M34: € 3.190 | N34: € 3.190 | P34: 5 | Q34: € 15.95 | R34: 10 | S34: € 31.90 | T34: 50 | U34: € 159.50 | V34: 100 | W34: € 319.00
B35: accu | C35: x3 | D35: accu 3,7v 6x11x60mm 300mA | E35: 0 | F35: ali 300mA | G35: ON3 | H35: ali | J35: 1 | K35: € 5.280 | L35: =26.04/10 -> € 2.604 | M35: =26.04/10 -> € 2.604 | N35: =26.04/10 -> € 2.604 | P35: 1 | Q35: € 5.28 | R35: 1 | S35: € 5.28 | T35: 1 | U35: € 5.28 | V35: 1 | W35: € 5.28
B36: accu | C36: x3 | D36: accu 3,7v 6x11x60mm 300mA - PH2 | E36: 1 | F36: ali 300mA | H36: ali | J36: 1 | K36: € 5.060 | L36: =22.93/10 -> € 2.293 | M36: =22.93/10 -> € 2.293 | N36: =22.93/10 -> € 2.293 | P36: 5 | Q36: € 25.30 | R36: 10 | S36: € 22.93 | T36: 50 | U36: € 114.65 | V36: 100 | W36: € 229.30
B37: PCB assemblage | C37: a1 | D37: 15 | E37: 0 | F37: willem | J37: 1 | K37: € 15.000 | L37: € 14.000 | M37: € 4.000 | N37: € 12.000 | P37: 1 | Q37: € 15.00 | R37: 1 | S37: € 15.00 | T37: 1 | U37: € 15.00 | V37: 1 | W37: € 15.00
A38: 33 | B38: assemblage | C38: a2 | D38: 10 | E38: 0 | F38: willem | J38: 1 | K38: € 10.000 | L38: € 14.000 | M38: € 6.000 | N38: € 12.000 | P38: 1 | Q38: € 10.00 | R38: =IF(R$1*$E38<$J38,$J38,R$1*$E38) -> 1 | S38: € 10.00 | T38: 1 | U38: € 10.00 | V38: 1 | W38: € 10.00
O40: TOTAL | Q40: =SUM(Q2:Q39) -> € 193.46 | S40: =SUM(S2:S39) -> € 242.68 | U40: =SUM(U2:U39) -> € 882.46 | W40: =SUM(W2:W39) -> € 1,498.11
O41: price pp | Q41: =Q40/P1 -> € 38.69 | S41: =S40/R1 -> € 24.27 | U41: =U40/T1 -> € 17.65 | W41: =W40/V1 -> € 14.98
